fUST/lending_fUST_20250109
["ID","MTS","AMOUNT","RATE_DAILY","PERIOD"]
[348238768,1736412634889,-500.0,0.00019178,2]
[348238769,1736412634899,-500.0,0.00019178,2]
[348238770,1736412634908,-500.0,0.00019178,2]
[348238771,1736412634917,-500.0,0.00019178,2]
[348238772,1736412634927,-500.0,0.00019178,2]
[348238773,1736412634937,-500.0,0.00019178,2]
[348238774,1736412634947,-500.0,0.00019178,2]
[348238775,1736412634957,-500.0,0.00019178,2]
[348238776,1736412634966,-224.29944625,0.00019178,2]
[348238777,1736412634975,-507.99760716,0.00019178,2]
[348238778,1736412634984,-154.24331916,0.00019178,2]
[348238779,1736412634994,-538.53388386,0.00019178,2]
[348238780,1736412635005,-500.0,0.00019178,2]
[348238781,1736412635015,-502.82924439,0.00019178,2]
[348238782,1736412635025,-500.0,0.00019178,2]
[348238783,1736412635035,-509.81683209,0.00019178,2]
[348238784,1736412635044,-500.0,0.00019178,2]
[348238785,1736412635054,-577.8660837,0.00019178,2]
[348238786,1736412635065,-500.0,0.00019178,2]
[348238787,1736412635074,-500.0,0.00019178,2]
[348238788,1736412635083,-200.0,0.00019178,2]
[348238789,1736412635093,-500.0,0.00019178,2]
[348238790,1736412635103,-500.0,0.00019178,2]
[348238791,1736412635113,-500.0,0.00019178,2]
[348238792,1736412635123,-500.0,0.00019178,2]
[348238793,1736412635132,-500.0,0.00019178,2]
[348238794,1736412635142,-500.0,0.00019178,2]
[348238795,1736412635153,-500.0,0.00019178,2]
[348238796,1736412635162,-500.0,0.00019178,2]
[348238797,1736412635171,-500.0,0.00019178,2]
[348238798,1736412635181,-310.30350385,0.00019178,2]
[348238799,1736412635191,-500.0,0.00019178,2]
[348238800,1736412635200,-500.0,0.00019178,2]
[348238801,1736412635210,-3095.95,0.00019178,2]
[348238802,1736412635219,-602.16,0.00019178,2]
[348238803,1736412635229,-500.0,0.00019178,2]
[348238804,1736412635238,-586.70778169,0.00019178,2]
[348238805,1736412635248,-500.0,0.00019178,2]
[348238806,1736412635258,-500.0,0.00019178,2]
[348238807,1736412635267,-178.5799104,0.00019178,2]
[348238808,1736412635277,-511.0404367,0.00019178,2]
[348238809,1736412635287,-500.0,0.00019178,2]
[348238810,1736412635296,-500.0,0.00019178,2]
[348238811,1736412635306,-500.0,0.00019178,2]
[348238812,1736412635316,-151.54707558,0.00019178,2]
[348238813,1736412635326,-500.0,0.00019178,2]
[348238814,1736412635335,-500.0,0.00019178,2]
[348238815,1736412635346,-500.0,0.00019178,2]
[348238816,1736412635355,-500.0,0.00019178,2]
[348238817,1736412635365,-500.0,0.00019178,2]
[348238818,1736412635374,-500.0,0.00019178,2]
[348238819,1736412635384,-500.0,0.00019178,2]
[348238820,1736412635394,-500.0,0.00019178,2]
[348238821,1736412635404,-507.61,0.00019178,2]
[348238822,1736412635415,-500.0,0.00019178,2]
[348238823,1736412635424,-588.90742446,0.00019178,2]
[348238824,1736412635434,-500.0,0.00019178,2]
[348238825,1736412635445,-500.0,0.00019178,2]
[348238826,1736412635455,-157.03621937,0.00019178,2]
[348238827,1736412635464,-500.0,0.00019178,2]
[348238828,1736412635474,-500.0,0.00019178,2]
[348238829,1736412635484,-500.0,0.00019178,2]
[348238830,1736412635494,-500.0,0.00019178,2]
[348238831,1736412635503,-500.0,0.00019178,2]
[348238832,1736412635514,-500.0,0.00019178,2]
[348238833,1736412635527,-500.0,0.00019178,2]
[348238834,1736412635536,-500.0,0.00019178,2]
[348238835,1736412635546,-500.0,0.00019178,2]
[348238836,1736412635555,-500.0,0.00019178,2]
[348238837,1736412635566,-500.79910043,0.00019178,2]
[348238838,1736412635576,-500.0,0.00019178,2]
[348238839,1736412635586,-500.0,0.00019178,2]
[348238840,1736412635596,-500.0,0.00019178,2]
[348238841,1736412635605,-500.0,0.00019178,2]
[348238842,1736412635614,-500.0,0.00019178,2]
[348238843,1736412635624,-500.0,0.00019178,2]
[348238844,1736412635634,-500.0,0.00019178,2]
[348238845,1736412635643,-500.0,0.00019178,2]
[348238846,1736412635653,-500.0,0.00019178,2]
[348238847,1736412635663,-500.0,0.00019178,2]
[348238848,1736412635672,-500.0,0.00019178,2]
[348238849,1736412635682,-500.0,0.00019178,2]
[348238850,1736412635692,-500.0,0.00019178,2]
[348238851,1736412635702,-500.0,0.00019178,2]
[348238852,1736412635712,-167.020577,0.00019178,2]
[348238853,1736412635722,-343.04665242,0.00019383,2]
[348238854,1736412635731,-500.0,0.00019452,3]
[348238855,1736412635741,-500.0,0.00019452,3]
[348238856,1736412635750,-598.45,0.00019452,3]
[348238857,1736412635759,-500.0,0.00019452,3]
[348238858,1736412635769,-500.0,0.00019452,3]
[348238859,1736412635779,-500.0,0.00019452,3]
[348238860,1736412635788,-500.0,0.00019452,3]
[348238861,1736412635798,-500.0,0.00019452,3]
[348238862,1736412635808,-500.0,0.00019452,3]
[348238863,1736412635820,-500.0,0.00019452,3]
[348238864,1736412635829,-509.71630001,0.00019452,3]
[348238865,1736412635839,-500.0,0.00019452,3]
[348238866,1736412635849,-500.0,0.00019452,3]
[348238867,1736412635858,-500.0,0.00019452,3]
[348238868,1736412635868,-500.0,0.00019452,3]
[348238869,1736412635877,-500.0,0.00019452,3]
[348238870,1736412635887,-500.0,0.00019452,3]
[348238871,1736412635899,-594.1562393,0.00019452,3]
[348238872,1736412635910,-500.0,0.00019452,3]
[348238873,1736412635922,-500.0,0.00019452,3]
[348238874,1736412635934,-500.0,0.00019452,3]
[348238875,1736412635946,-157.73812858,0.00019452,3]
[348238876,1736412635956,-500.0,0.00019452,3]
[348238877,1736412635965,-558.2,0.00019452,3]
[348238878,1736412635975,-500.0,0.00019452,3]
[348238879,1736412635984,-500.0,0.00019452,3]
[348238880,1736412635994,-500.0,0.00019452,3]
[348238881,1736412636004,-202.02447947,0.00019452,3]
[348238882,1736412636014,-500.0,0.00019452,3]
[348238883,1736412636023,-234.02094247,0.00019452,3]
[348238884,1736412636033,-500.0,0.00019452,3]
[348238885,1736412636044,-500.0,0.00019452,3]
[348238886,1736412636054,-500.0,0.00019452,3]
[348238887,1736412636063,-536.14016044,0.00019452,3]
[348238888,1736412636072,-500.0,0.00019452,3]
[348238889,1736412636082,-189.68882962,0.00019452,3]
[348238890,1736412636091,-2706.19,0.00019452,2]
[348238891,1736412636100,-500.0,0.00019452,3]
[348238892,1736412636110,-500.0,0.00019452,3]
[348238893,1736412636119,-500.0,0.00019452,3]
[348238894,1736412636129,-831.9,0.00019452,3]
[348238895,1736412636139,-500.0,0.00019452,3]
[348238896,1736412636150,-500.0,0.00019452,3]
[348238897,1736412636159,-500.0,0.00019452,3]
[348238898,1736412636169,-521.9,0.00019452,3]
[348238899,1736412636179,-500.0,0.00019452,3]
[348238900,1736412636188,-500.0,0.00019452,3]
[348238901,1736412636198,-200.0,0.00019452,3]
[348238902,1736412636208,-500.0,0.00019452,3]
[348238903,1736412636217,-500.0,0.00019452,3]
[348238904,1736412636227,-500.0,0.00019452,3]
[348238905,1736412636236,-500.0,0.00019452,3]
[348238906,1736412636247,-500.0,0.00019452,3]
[348238907,1736412636256,-500.0,0.00019452,3]
[348238908,1736412636265,-500.0,0.00019452,3]
[348238909,1736412636275,-3095.95,0.00019452,3]
[348238910,1736412636284,-602.16,0.00019452,3]
[348238911,1736412636293,-500.0,0.00019452,3]
[348238912,1736412636303,-500.0,0.00019452,3]
[348238913,1736412636312,-500.0,0.00019452,3]
[348238914,1736412636322,-500.0,0.00019452,3]
[348238915,1736412636331,-500.0,0.00019452,3]
[348238916,1736412636341,-500.0,0.00019452,3]
[348238917,1736412636351,-500.0,0.00019452,3]
[348238918,1736412636360,-500.0,0.00019452,3]
[348238919,1736412636370,-500.0,0.00019452,3]
[348238920,1736412636379,-500.0,0.00019452,3]
[348238921,1736412636388,-500.0,0.00019452,3]
[348238922,1736412636397,-500.0,0.00019452,3]
[348238923,1736412636407,-500.0,0.00019452,3]
[348238924,1736412636416,-500.0,0.00019452,3]
[348238925,1736412636426,-500.0,0.00019452,3]
[348238926,1736412636435,-500.0,0.00019452,3]
[348238927,1736412636444,-500.0,0.00019452,3]
[348238928,1736412636454,-500.0,0.00019452,3]
[348238929,1736412636463,-500.0,0.00019452,3]
[348238930,1736412636473,-500.0,0.00019452,3]
[348238931,1736412636482,-500.0,0.00019452,3]
[348238932,1736412636491,-500.0,0.00019452,3]
[348238933,1736412636501,-385.75439202,0.00019452,3]
[348238934,1736412636510,-500.0,0.00019452,3]
[348238935,1736412636523,-500.0,0.00019452,3]
[348238936,1736412636533,-500.0,0.0001961,2]
[348238937,1736412636543,-1000.0,0.00019721,2]
[348238938,1736412636553,-598.45,0.00019726,3]
[348238939,1736412636562,-500.0,0.00019726,3]
[348238940,1736412636572,-500.0,0.00019726,3]
[348238941,1736412636581,-500.0,0.00019726,3]
[348238942,1736412636591,-500.0,0.00019726,3]
[348238943,1736412636601,-500.0,0.00019726,3]
[348238944,1736412636610,-500.0,0.00019726,3]
[348238945,1736412636619,-500.0,0.00019726,3]
[348238946,1736412636629,-630.35654412,0.00019726,3]
[348238947,1736412636638,-523.77,0.00019726,3]
[348238948,1736412636647,-349.28875395,0.00019726,3]
[348238949,1736412636656,-500.0,0.00019726,3]
[348238950,1736412636666,-2706.19,0.00019726,2]
[348238951,1736412636750,-500.0,0.00019726,3]
[348238952,1736412636761,-500.0,0.00019726,3]
[348238953,1736412636771,-831.9,0.00019726,3]
[348238954,1736412636781,-220.14,0.00019726,3]
[348238955,1736412636791,-521.9,0.00019726,3]
[348238956,1736412636801,-500.0,0.00019726,3]
[348238957,1736412636811,-500.0,0.00019726,3]
[348238958,1736412636821,-500.0,0.00019726,3]
[348238959,1736412636831,-500.0,0.00019726,3]
[348238960,1736412636840,-500.0,0.00019726,3]
[348238961,1736412636849,-3095.95,0.00019726,3]
[348238962,1736412636859,-602.16,0.00019726,3]
[348238963,1736412636869,-500.0,0.00019726,3]
[348238964,1736412636878,-500.0,0.00019726,3]
[348238965,1736412636888,-500.0,0.00019726,3]
[348238966,1736412636898,-500.0,0.00019726,3]
[348238967,1736412636908,-500.0,0.00019726,3]
[348238968,1736412636917,-500.0,0.00019726,3]
[348238969,1736412636927,-500.0,0.00019726,3]
[348238970,1736412636937,-442.4891782,0.00019726,3]
[348238971,1736412636951,-500.0,0.00019726,3]
[348238972,1736412636961,-500.0,0.00019726,3]
[348238973,1736412636971,-567.92,0.00019726,3]
[348238974,1736412636980,-599.24,0.00019726,3]
[348238975,1736412636989,-500.0,0.00019726,3]
[348238976,1736412636999,-500.0,0.00019726,3]
[348238977,1736412637009,-500.0,0.00019726,3]
[348238978,1736412637019,-500.0,0.00019726,3]
[348238979,1736412637028,-500.0,0.00019726,3]
[348238980,1736412637038,-500.0,0.00019726,3]
[348238981,1736412637047,-500.0,0.00019726,3]
[348238982,1736412637057,-598.45,0.0002,3]
[348238983,1736412637066,-500.0,0.0002,3]
[348238984,1736412637075,-183.90930677,0.0002,3]
[348238985,1736412637085,-500.0,0.0002,3]
[348238986,1736412637094,-500.0,0.0002,3]
[348238987,1736412637104,-500.0,0.0002,3]
[348238988,1736412637115,-500.0,0.0002,3]
[348238989,1736412637125,-500.0,0.0002,3]
[348238990,1736412637134,-2706.19,0.0002,2]
[348238991,1736412637144,-551.85,0.0002,3]
[348238992,1736412637153,-500.0,0.0002,3]
[348238993,1736412637163,-831.9,0.0002,3]
[348238994,1736412637172,-521.9,0.0002,3]
[348238995,1736412637181,-310.95731207,0.0002,3]
[348238996,1736412637191,-499.06,0.0002,3]
[348238997,1736412637201,-500.0,0.0002,3]
[348238998,1736412637210,-467.8,0.0002,3]
[348238999,1736412637220,-3095.95,0.0002,3]
[348239000,1736412637231,-602.16,0.0002,3]
[348239001,1736412637242,-500.0,0.0002,3]
[348239002,1736412637251,-500.0,0.0002,3]
[348239003,1736412637261,-500.0,0.0002,3]
[348239004,1736412637270,-352.98421457,0.0002,3]
[348239005,1736412637280,-500.0,0.0002,3]
[348239006,1736412637289,-500.0,0.0002,3]
[348239007,1736412637298,-216.02,0.0002,3]
[348239008,1736412637307,-500.0,0.0002,3]
[348239009,1736412637317,-500.0,0.0002,3]
[348239010,1736412637326,-532.14,0.0002,3]
[348239011,1736412637335,-500.0,0.0002,3]
[348239012,1736412637344,-299.08523791,0.00020092,2]
[348239013,1736412637354,-173.74605056,0.00020092,2]
[348239015,1736412637364,-598.45,0.00020273,3]
[348239016,1736412637373,-500.0,0.00020273,3]
[348239017,1736412637383,-314.05,0.00020273,3]
[348239019,1736412637392,-500.0,0.00020273,3]
[348239020,1736412637402,-2706.19,0.00020273,2]
[348239021,1736412637411,-500.0,0.00020273,3]
[348239022,1736412637420,-831.9,0.00020273,3]
[348239023,1736412637429,-521.9,0.00020273,3]
[348239024,1736412637439,-500.0,0.00020273,3]
[348239026,1736412637448,-3095.95,0.00020273,3]
[348239028,1736412637457,-602.16,0.00020273,3]
[348239029,1736412637467,-500.0,0.00020273,3]
[348239030,1736412637476,-500.0,0.00020273,3]
[348239031,1736412637486,-567.32,0.00020273,3]
[348239034,1736412637496,-500.0,0.00020273,3]
[348239035,1736412637504,-332.1,0.00020273,3]
[348239036,1736412637514,-500.0,0.00020273,3]
[348239037,1736412637526,-500.0,0.00020273,3]
[348239038,1736412637536,-500.0,0.00020273,3]
[348239039,1736412637545,-236.426753,0.00020447,2]
[348239040,1736412637555,-598.45,0.00020547,3]
[348239041,1736412637565,-278.54,0.00020547,3]
[348239042,1736412637574,-500.0,0.00020547,3]
[348239043,1736412637583,-2706.19,0.00020547,2]
[348239044,1736412637592,-500.0,0.00020547,3]
[348239045,1736412637603,-831.9,0.00020547,3]
[348239046,1736412637612,-521.9,0.00020547,3]
[348239047,1736412637621,-3095.95,0.00020547,3]
[348239048,1736412637631,-602.16,0.00020547,3]
[348239049,1736412637641,-500.0,0.00020547,3]
[348239050,1736412637651,-500.0,0.00020547,3]
[348239052,1736412637660,-206.34,0.00020547,3]
[348239054,1736412637669,-500.0,0.00020547,3]
[348239055,1736412637679,-282.78,0.00020547,3]
[348239056,1736412637688,-500.0,0.0002059,2]
[348239057,1736412637699,-394.0,0.00020674,2]
[348239058,1736412637710,-1500.0,0.00020722,2]
[348239060,1736412637719,-598.45,0.00020821,3]
[348239062,1736412637729,-500.0,0.00020821,3]
[348239064,1736412637739,-2706.19,0.00020821,2]
[348239066,1736412637748,-170.74,0.00020821,3]
[348239068,1736412637757,-831.9,0.00020821,3]
[348239070,1736412637766,-521.9,0.00020821,3]
[348239072,1736412637776,-3095.95,0.00020821,3]
[348239073,1736412637785,-602.16,0.00020821,3]
[348239074,1736412637794,-500.0,0.00020821,3]
[348239075,1736412637803,-367.84,0.00020821,3]
[348239076,1736412637812,-500.0,0.00020821,3]
[348239077,1736412637822,-598.45,0.00021095,3]
[348239079,1736412637831,-500.0,0.00021095,3]
[348239080,1736412637841,-2706.19,0.00021095,2]
[348239081,1736412637850,-831.9,0.00021095,3]
[348239082,1736412637859,-521.9,0.00021095,3]
[348239083,1736412637868,-3095.95,0.00021095,3]
[348239084,1736412637878,-602.16,0.00021095,3]
[348239085,1736412637887,-500.0,0.00021095,3]
[348239086,1736412637896,-500.0,0.00021095,3]
[348239087,1736412637905,-299.08523791,0.00021105,2]
[348239088,1736412637914,-173.74605056,0.00021105,2]
[348239089,1736412637924,-598.45,0.00021369,3]
[348239090,1736412637933,-500.0,0.00021369,3]
[348239091,1736412637945,-2706.19,0.00021369,2]
[348239092,1736412637958,-831.9,0.00021369,3]
[348239093,1736412637968,-521.9,0.00021369,3]
[348239094,1736412637977,-3095.95,0.00021369,3]
[348239095,1736412637988,-602.16,0.00021369,3]
[348239096,1736412637997,-500.0,0.00021369,3]
[348239097,1736412638007,-500.0,0.00021369,3]
[348239098,1736412638017,-500.0,0.00021619,2]
[348239099,1736412638026,-598.45,0.00021643,3]
[348239100,1736412638036,-500.0,0.00021643,3]
[348239101,1736412638045,-2706.19,0.00021643,2]
[348239102,1736412638055,-831.9,0.00021643,3]
[348239103,1736412638065,-521.9,0.00021643,3]
[348239104,1736412638075,-3095.95,0.00021643,3]
[348239105,1736412638084,-500.0,0.00021643,3]
[348239106,1736412638094,-602.16,0.00021643,3]
[348239107,1736412638103,-500.0,0.00021643,3]
[348239108,1736412638113,-598.45,0.00021917,3]
[348239109,1736412638122,-500.0,0.00021917,3]
[348239110,1736412638131,-2706.19,0.00021917,2]
[348239111,1736412638141,-831.9,0.00021917,3]
[348239112,1736412638150,-521.9,0.00021917,3]
[348239113,1736412638159,-3095.95,0.00021917,3]
[348239114,1736412638169,-308.57992255,0.00021917,3]
[348239115,1736412638178,-602.16,0.00021917,3]
[348239116,1736412638187,-500.0,0.00021917,3]
[348239117,1736412638199,-500.0,0.0002202,2]
[348239118,1736412638208,-585.305,0.0002206,2]
[348239119,1736412638218,-299.08523791,0.00022119,2]
[348239120,1736412638227,-173.74605056,0.00022119,2]
[348239121,1736412638237,-517.30054264,0.00022172,2]
[348239122,1736412638246,-598.45,0.00022191,3]
[348239123,1736412638255,-500.0,0.00022191,3]
[348239124,1736412638264,-2706.19,0.00022191,2]
[348239125,1736412638273,-831.9,0.00022191,3]
[348239126,1736412638283,-521.9,0.00022191,3]
[348239127,1736412638292,-3095.95,0.00022191,3]
[348239128,1736412638301,-602.16,0.00022191,3]
[348239129,1736412638310,-206.71,0.00022191,3]
[348239130,1736412638321,-598.45,0.00022465,3]
[348239131,1736412638330,-500.0,0.00022465,3]
[348239132,1736412638340,-2706.19,0.00022465,2]
[348239133,1736412638349,-831.9,0.00022465,3]
[348239134,1736412638358,-521.9,0.00022465,3]
[348239135,1736412638367,-3095.95,0.00022465,3]
[348239136,1736412638376,-602.16,0.00022465,3]
[348239137,1736412638385,-500.0,0.000227,2]
[348239138,1736412638394,-598.45,0.00022739,3]
[348239139,1736412638404,-500.0,0.00022739,3]
[348239140,1736412638413,-2706.19,0.00022739,2]
[348239141,1736412638422,-831.9,0.00022739,3]
[348239142,1736412638431,-521.9,0.00022739,3]
[348239143,1736412638443,-3095.95,0.00022739,3]
[348239144,1736412638452,-602.16,0.00022739,3]
[348239145,1736412638461,-521.0,0.0002278,9]
[348239146,1736412638470,-433.33,0.000228,2]
[348239147,1736412638479,-152.6372958,0.00022967,2]
[348239148,1736412638489,-598.45,0.00023013,3]
[348239149,1736412638497,-500.0,0.00023013,3]
[348239150,1736412638506,-2706.19,0.00023013,2]
[348239151,1736412638516,-831.9,0.00023013,3]
[348239152,1736412638527,-521.9,0.00023013,3]
[348239153,1736412638536,-3095.95,0.00023013,3]
[348239154,1736412638546,-602.16,0.00023013,3]
[348239155,1736412638555,-668.48301183,0.00023128,2]
[348239156,1736412638565,-1508.31789912,0.00023131,2]
[348239157,1736412638575,-299.08523791,0.00023132,2]
[348239158,1736412638585,-173.74605056,0.00023132,2]
[348239159,1736412638594,-151.0,0.000232,7]
[348239160,1736412638604,-151.0,0.000232,9]
[348239161,1736412638613,-2012.0,0.000232,2]
[348239162,1736412638623,-151.0,0.00023217,7]
[348239163,1736412638632,-151.0,0.00023217,7]
[348239164,1736412638642,-151.0,0.00023219,7]
[348239165,1736412638652,-151.0,0.00023219,7]
[348239166,1736412638662,-151.0,0.00023219,7]
[348239167,1736412638671,-151.0,0.00023231,7]
[348239168,1736412638680,-391.08808,0.00023231,7]
[348239169,1736412638693,-391.08808,0.00023231,7]
[348239170,1736412638703,-391.08808,0.00023231,7]
[348239171,1736412638711,-391.08808,0.00023231,7]
[348239172,1736412638720,-391.08808,0.00023231,7]
[348239173,1736412638729,-391.08808,0.00023231,7]
[348239174,1736412638738,-391.08808,0.00023231,7]
[348239175,1736412638747,-391.08808,0.00023231,7]
[348239176,1736412638756,-391.08808,0.00023231,7]
[348239177,1736412638765,-391.08808,0.00023231,7]
[348239178,1736412638774,-391.08808,0.00023231,7]
[348239179,1736412638783,-391.08808,0.00023231,7]
[348239180,1736412638792,-391.08808,0.00023231,7]
[348239181,1736412638874,-391.08808,0.00023231,7]
[348239182,1736412638883,-391.08808,0.00023231,7]
[348239183,1736412638892,-391.08808,0.00023231,7]
[348239184,1736412638902,-391.08808,0.00023231,7]
[348239185,1736412638910,-391.08808,0.00023231,7]
[348239186,1736412638920,-391.08808,0.00023231,7]
[348239187,1736412638929,-391.08809,0.00023231,7]
[348239188,1736412638938,-151.0,0.00023231,7]
[348239189,1736412638948,-159.952844,0.00023231,7]
[348239190,1736412638957,-151.0,0.00023231,7]
[348239191,1736412638966,-151.0,0.00023231,7]
[348239192,1736412638975,-151.0,0.00023231,7]
[348239193,1736412638985,-151.0,0.00023231,7]
[348239194,1736412638994,-151.0,0.00023231,7]
[348239195,1736412639004,-151.0,0.00023231,7]
[348239196,1736412639015,-151.0,0.00023231,7]
[348239197,1736412639024,-151.0,0.00023231,7]
[348239198,1736412639034,-151.0,0.00023231,7]
[348239199,1736412639043,-151.0,0.00023231,7]
[348239200,1736412639052,-175.209639,0.00023231,7]
[348239201,1736412639061,-151.0,0.00023231,7]
[348239202,1736412639070,-151.0,0.00023231,7]
[348239203,1736412639079,-160.762753,0.00023231,7]
[348239204,1736412639088,-160.762753,0.00023231,7]
[348239205,1736412639097,-160.762753,0.00023231,7]
[348239206,1736412639106,-160.762753,0.00023231,7]
[348239207,1736412639115,-160.762753,0.00023231,7]
[348239208,1736412639124,-160.762753,0.00023231,7]
[348239209,1736412639133,-160.762753,0.00023231,7]
[348239210,1736412639144,-160.762753,0.00023231,7]
[348239211,1736412639154,-160.762753,0.00023231,7]
[348239212,1736412639165,-160.762753,0.00023231,7]
[348239213,1736412639174,-160.762753,0.00023231,7]
[348239214,1736412639183,-160.762753,0.00023231,7]
[348239215,1736412639194,-160.762753,0.00023231,7]
[348239216,1736412639203,-160.762753,0.00023231,7]
[348239217,1736412639212,-160.762753,0.00023231,7]
[348239218,1736412639221,-160.762753,0.00023231,7]
[348239219,1736412639231,-160.762753,0.00023231,7]
[348239220,1736412639240,-160.762753,0.00023231,7]
[348239221,1736412639250,-160.762753,0.00023231,7]
[348239222,1736412639259,-160.762745,0.00023231,7]
[348239223,1736412639268,-151.0,0.00023231,7]
[348239224,1736412639277,-151.0,0.00023231,7]
[348239225,1736412639286,-151.0,0.00023231,7]
[348239226,1736412639296,-151.0,0.00023231,7]
[348239227,1736412639305,-247.520734,0.00023231,7]
[348239228,1736412639314,-151.0,0.00023231,7]
[348239229,1736412639323,-151.0,0.00023231,7]
[348239230,1736412639332,-151.0,0.00023231,7]
[348239231,1736412639341,-151.0,0.00023231,7]
[348239233,1736412639350,-151.0,0.00023231,7]
[348239234,1736412639360,-151.0,0.00023231,7]
[348239235,1736412639369,-168.270852,0.00023231,7]
[348239236,1736412639378,-380.318052,0.00023231,7]
[348239237,1736412639387,-380.318052,0.00023231,7]
[348239238,1736412639396,-380.318052,0.00023231,7]
[348239239,1736412639405,-380.318052,0.00023231,7]
[348239240,1736412639414,-380.318052,0.00023231,7]
[348239241,1736412639423,-380.318052,0.00023231,7]
[348239242,1736412639432,-380.318052,0.00023231,7]
[348239243,1736412639442,-380.318052,0.00023231,7]
[348239244,1736412639451,-380.318052,0.00023231,7]
[348239246,1736412639460,-380.318052,0.00023231,7]
[348239247,1736412639470,-380.318052,0.00023231,7]
[348239248,1736412639479,-380.318052,0.00023231,7]
[348239249,1736412639488,-380.318052,0.00023231,7]
[348239250,1736412639497,-380.318052,0.00023231,7]
[348239251,1736412639506,-380.318052,0.00023231,7]
[348239252,1736412639515,-380.318052,0.00023231,7]
[348239253,1736412639528,-380.318052,0.00023231,7]
[348239254,1736412639539,-380.318052,0.00023231,7]
[348239255,1736412639548,-380.318052,0.00023231,7]
[348239256,1736412639559,-380.318052,0.00023231,7]
[348239258,1736412639568,-151.0,0.00023231,7]
[348239259,1736412639577,-151.0,0.00023231,7]
[348239261,1736412639586,-151.0,0.00023231,7]
[348239263,1736412639597,-151.0,0.00023231,7]
[348239265,1736412639606,-151.0,0.00023231,7]
[348239267,1736412639616,-151.0,0.00023231,7]
[348239269,1736412639625,-151.0,0.00023231,7]
[348239270,1736412639634,-216.281356,0.00023231,7]
[348239271,1736412639643,-151.0,0.00023231,7]
[348239272,1736412639652,-151.0,0.00023231,7]
[348239274,1736412639660,-151.0,0.00023231,7]
[348239275,1736412639669,-151.0,0.00023231,7]
[348239276,1736412639679,-151.0,0.00023231,7]
[348239277,1736412639688,-236.383036,0.00023231,7]
[348239279,1736412639699,-151.0,0.00023231,2]
[348239281,1736412639708,-151.0,0.00023231,2]
[348239283,1736412639717,-151.0,0.00023231,2]
[348239285,1736412639726,-151.0,0.00023231,2]
[348239287,1736412639735,-151.0,0.00023231,2]
[348239289,1736412639744,-151.0,0.00023231,2]
[348239291,1736412639754,-151.0,0.00023231,2]
[348239293,1736412639764,-151.0,0.00023231,2]
[348239295,1736412639773,-151.0,0.00023231,2]
[348239297,1736412639782,-151.0,0.00023231,2]
[348239299,1736412639791,-151.0,0.00023231,2]
[348239301,1736412639801,-151.0,0.00023231,2]
[348239303,1736412639811,-151.0,0.00023231,2]
[348239305,1736412639821,-40477.11923613,0.00023231,5]
[348239307,1736412639831,-22558.00027548,0.00023231,5]